{"text_format":"1","workbook":"xlsx","n_sheets":4,"sheets":["0","1","2","3"],"not_rendered":{"charts":0,"images":29,"macros":1,"external_links":0,"defined_names":4,"comments":0,"pivot_tables":0},"unopened":[],"bounds":{"document_bytes":16777216,"sheet_cells":100000,"rows_first":2000,"rows_last":500,"rows_between":2000,"halvings":0,"cell_chars":16384,"cell_head_chars":4096},"cells_cut":0,"cells_raw":0,"read":"whole","date_system":"1900"}

{"sheet":"0","index":0,"n_rows":27,"n_cols":12,"rows_kept":27,"cut":false,"hidden":false,"merged":[[1,1,2,11],[18,1,19,11],[3,1,8,11],[9,1,17,11]]}
[]
[null,"CRM - SISTEMA CONSOLIDA E RINFORZA"]
[]
[null,"La soluzione tecnica proposta e i dati riportati vengono forniti esclusivamente a titolo di servizio Tecnico-Commerciale nell’ambito dell’attività di vendita esercitata da Ferri SRL.; i medesimi dati non costituiscono in alcun modo specifica tecnica e sono puramente indicativi in quanto risultanti dalla elaborazione dei dati base di “input” (a titolo esemplificativo: tipologia di muratura, spessore della muratura, livello di conoscenza, parametri migliorativi, etc.) forniti dal Cliente. Ferri SRL è azienda unicamente fornitrice dei materiali per uso professionale e non può ad alcun titolo ritenersi responsabile della correttezza e adeguatezza del dimensionamento della sezione composta e della relazione tecnica allo specifico intervento nel quale il Cliente intende utilizzare gli elementi di consolidamento. Sono di esclusiva competenza e responsabilità del Cliente la valutazione e la verifica di adeguatezza, congruità, adattabilità e utilizzabilità del presente documento tecnico all’impiego previsto; il Cliente solleva ed esonera pertanto Ferri SRL da ogni responsabilità al riguardo. La presente relazione tecnica non può in alcun modo essere utilizzata per il deposito presso gli Uffici Tecnici competenti. \n\nLa verifica di correttezza e adeguatezza della relazione tecnica allo specifico intervento nel quale il Cliente intende utilizzare gli elementi di consolidamento deve sempre essere valutata e certificata da un professionista tecnico abilitato ai sensi di legge.\n"]
[]
[]
[]
[]
[]
[]
[]
[]
[]
[]
[]
[]
[]
[]
[]
[]
[null,"Versione programma:",null,1.01,null,null,null,null,null,null,null,"2021-03-01"]
[]
[]
[]
[null,null,"via Emilia Ovest, 58 – Rimale 43036 Fidenza (PR)",null,null,null,null,null,null,"www.ferrimix.it"]
[null,null,"+39 0524 520312",null,null,null,null,null,null,"infoferri@ferrimix.it"]
[null,null," +39 0524 520314"]

{"sheet":"1","index":1,"n_rows":170,"n_cols":234,"rows_kept":170,"cut":false,"hidden":false,"merged":[[2,6,3,11],[8,2,8,5],[10,2,10,5],[13,3,13,5],[23,2,23,8],[14,4,16,5],[13,8,13,10],[19,2,19,11],[20,2,20,8],[21,2,21,8],[22,2,22,8]]}
[]
[]
[null,null,null,null,null,null,"DEFINIZIONE MURATURA ESISTENTE"]
[]
[]
[]
[]
[]
[null,null,"Tipologia di muratura secondo NTC",null,null,null,"Muratura in pietrame disordinata "]
[]
[null,null,"Spessore del paramento"]
[]
[]
[null,null,null,"Livello di conoscenza",null,null,null,null,"Parametri migliorativi"]
[null,null,null,null,"Sceglere il livello di conoscenza raggiunto per la muratura oggetto d'intervento"]
[]
[]
[]
[]
[null,null,"Caratteristiche meccaniche muratura esistente"]
[null,null,"Resistenza media a compressione",null,null,null,null,null,null,"f",{"$f":"'1'!HD136","v":1},"N/mm2"]
[null,null,"Resistenza media a taglio in assenza di sforzi normali",null,null,null,null,null,null,"τ0",{"$f":"'1'!HF136","v":1.7999999999999999E-2},"N/mm2"]
[null,null,"Valore medio del modulo di elasticità normale",null,null,null,null,null,null,"E",{"$f":"'1'!HJ136","v":870},"N/mm2"]
[null,null,"Valore medio del modulo di elasticità tangenziale",null,null,null,null,null,null,"G",{"$f":"'1'!HL136","v":290},"N/mm2"]
[]
[]
[]
[]
[]
[]
[]
[]
[]
[]
[]
[]
[]
[]
[]
[]
[]
[]
[]
[]
[]
[]
[]
[]
[]
[]
[]
[]
[]
[]
[]
[]
[]
[]
[]
[]
[]
[]
[]
[]
[]
[]
[]
[]
[]
[]
[]
[]
[]
[]
[]
[]
[]
[]
[]
[]
[]
[]
[]
[]
[]
[]
[]
[]
[]
[]
[]
[]
[]
[]
[]
[]
[]
[]
[]
[]
[]
[]
[]
[]
[]
[]
[]
[]
[]
[]
[]
[]
[]
[]
[]
[]
[]
[]
[]
[null,null,null,null,null,null,null,null,null,null,null,null,null,null,null,null,null,null,null,null,null,null,null,null,null,null,null,null,null,null,null,null,null,null,null,null,null,null,null,null,null,null,null,null,null,null,null,null,null,null,null,null,null,null,null,null,null,null,null,null,null,null,null,null,null,null,null,null,null,null,null,null,null,null,null,null,null,null,null,null,null,null,null,null,null,null,null,null,null,null,null,null,null,null,null,null,null,null,null,null,null,null,null,null,null,null,null,null,null,null,null,null,null,null,null,null,null,null,null,null,null,null,null,null,null,null,null,null,null,null,null,null,null,null,null,null,null,null,null,null,null,null,null,null,null,null,null,null,null,null,null,null,null,null,null,null,null,null,null,null,null,null,null,null,null,null,null,null,null,null,null,null,null,null,null,null,null,null,null,null,null,null,null,null,null,null,null,null,null,null,null,null,null,null,null,null,null,null,null,null,null,null,null,null,null,null,null,null,null,null,null,"f N/mm2",null,"t0 N/mm2",null,"fv0 N/mm2",null,"E N/mm2",null,"G N/mm2",null,"w KN/m3",null,null,"Malta buona",null,"ricorsi o listature ",null,"connessione trasversale"]
[null,null,null,null,null,null,null,null,null,null,null,null,null,null,null,null,null,null,null,null,null,null,null,null,null,null,null,null,null,null,null,null,null,null,null,null,null,null,null,null,null,null,null,null,null,null,null,null,null,null,null,null,null,null,null,null,null,null,null,null,null,null,null,null,null,null,null,null,null,null,null,null,null,null,null,null,null,null,null,null,null,null,null,null,null,null,null,null,null,null,null,null,null,null,null,null,null,null,null,null,null,null,null,null,null,null,null,null,null,null,null,null,null,null,null,null,null,null,null,null,null,null,null,null,null,null,null,null,null,null,null,null,null,null,null,null,null,null,null,null,null,null,null,null,null,null,null,null,null,null,null,null,null,null,null,null,null,null,null,null,null,null,null,null,null,null,null,null,null,null,null,null,null,null,null,null,null,null,null,null,null,null,null,null,null,null,null,null,null,null,null,null,null,null,null,null,null,null,null,null,null,null,null,null,"Mesistente",null,null,null,null,null,null,"min","max","min","max","min","max","min","max","min","max","min","max",null,true,false,true,false,true,false]
[null,null,null,null,null,null,null,null,null,null,null,null,null,null,null,null,null,null,null,null,null,null,null,null,null,null,null,null,null,null,null,null,null,null,null,null,null,null,null,null,null,null,null,null,null,null,null,null,null,null,null,null,null,null,null,null,null,null,null,null,null,null,null,null,null,null,null,null,null,null,null,null,null,null,null,null,null,null,null,null,null,null,null,null,null,null,null,null,null,null,null,null,null,null,null,null,null,null,null,null,null,null,null,null,null,null,null,null,null,null,null,null,null,null,null,null,null,null,null,null,null,null,null,null,null,null,null,null,null,null,null,null,null,null,null,null,null,null,null,null,null,null,null,null,null,null,null,null,null,null,null,null,null,null,null,null,null,null,null,null,null,null,null,null,null,null,null,null,null,null,null,null,null,null,null,null,null,null,null,null,null,null,null,null,null,null,null,null,null,null,null,null,null,null,null,null,null,null,null,null,null,null,null,null,"Muratura in pietrame disordinata ",null,null,null,null,null,null,1,2,1.7999999999999999E-2,3.2000000000000001E-2,"-","-",690,1050,230,350,19,19,"Muratura in pietrame disordinata ",1.5,1,1.3,1,1.5,1]
[null,null,null,null,null,null,null,null,null,null,null,null,null,null,null,null,null,null,null,null,null,null,null,null,null,null,null,null,null,null,null,null,null,null,null,null,null,null,null,null,null,null,null,null,null,null,null,null,null,null,null,null,null,null,null,null,null,null,null,null,null,null,null,null,null,null,null,null,null,null,null,null,null,null,null,null,null,null,null,null,null,null,null,null,null,null,null,null,null,null,null,null,null,null,null,null,null,null,null,null,null,null,null,null,null,null,null,null,null,null,null,null,null,null,null,null,null,null,null,null,null,null,null,null,null,null,null,null,null,null,null,null,null,null,null,null,null,null,null,null,null,null,null,null,null,null,null,null,null,null,null,null,null,null,null,null,null,null,null,null,null,null,null,null,null,null,null,null,null,null,null,null,null,null,null,null,null,null,null,null,null,null,null,null,null,null,null,null,null,null,null,null,null,null,null,null,null,null,null,null,null,null,null,null,"Muratura a conci sbozzati, con paramenti di spessore disomogeneo",null,null,null,null,null,null,2,2,3.5000000000000003E-2,5.0999999999999997E-2,"-","-",1020,1440,340,480,20,20,"Muratura a conci sbozzati, con paramenti di spessore disomogeneo",1.4,1,1.2,1,1.5,1]
[null,null,null,null,null,null,null,null,null,null,null,null,null,null,null,null,null,null,null,null,null,null,null,null,null,null,null,null,null,null,null,null,null,null,null,null,null,null,null,null,null,null,null,null,null,null,null,null,null,null,null,null,null,null,null,null,null,null,null,null,null,null,null,null,null,null,null,null,null,null,null,null,null,null,null,null,null,null,null,null,null,null,null,null,null,null,null,null,null,null,null,null,null,null,null,null,null,null,null,null,null,null,null,null,null,null,null,null,null,null,null,null,null,null,null,null,null,null,null,null,null,null,null,null,null,null,null,null,null,null,null,null,null,null,null,null,null,null,null,null,null,null,null,null,null,null,null,null,null,null,null,null,null,null,null,null,null,null,null,null,null,null,null,null,null,null,null,null,null,null,null,null,null,null,null,null,null,null,null,null,null,null,null,null,null,null,null,null,null,null,null,null,null,null,null,null,null,null,null,null,null,null,null,null,"Muratura in pietre a spacco con buona tessitura",null,null,null,null,null,null,2.6,3.8,5.6000000000000001E-2,7.3999999999999996E-2,"-","-",1500,1980,500,660,21,21,"Muratura in pietre a spacco con buona tessitura",1.3,1,1.1000000000000001,1,1.3,1]
[null,null,null,null,null,null,null,null,null,null,null,null,null,null,null,null,null,null,null,null,null,null,null,null,null,null,null,null,null,null,null,null,null,null,null,null,null,null,null,null,null,null,null,null,null,null,null,null,null,null,null,null,null,null,null,null,null,null,null,null,null,null,null,null,null,null,null,null,null,null,null,null,null,null,null,null,null,null,null,null,null,null,null,null,null,null,null,null,null,null,null,null,null,null,null,null,null,null,null,null,null,null,null,null,null,null,null,null,null,null,null,null,null,null,null,null,null,null,null,null,null,null,null,null,null,null,null,null,null,null,null,null,null,null,null,null,null,null,null,null,null,null,null,null,null,null,null,null,null,null,null,null,null,null,null,null,null,null,null,null,null,null,null,null,null,null,null,null,null,null,null,null,null,null,null,null,null,null,null,null,null,null,null,null,null,null,null,null,null,null,null,null,null,null,null,null,null,null,null,null,null,null,null,null,"Muratura irregolare di pietra tenera ",null,null,null,null,null,null,1.4,2.2000000000000002,2.8000000000000001E-2,4.2000000000000003E-2,"-","-",900,1260,300,420,14.5,14.5,"Muratura irregolare di pietra tenera ",1.5,1,1.2,1,1.3,1]
[null,null,null,null,null,null,null,null,null,null,null,null,null,null,null,null,null,null,null,null,null,null,null,null,null,null,null,null,null,null,null,null,null,null,null,null,null,null,null,null,null,null,null,null,null,null,null,null,null,null,null,null,null,null,null,null,null,null,null,null,null,null,null,null,null,null,null,null,null,null,null,null,null,null,null,null,null,null,null,null,null,null,null,null,null,null,null,null,null,null,null,null,null,null,null,null,null,null,null,null,null,null,null,null,null,null,null,null,null,null,null,null,null,null,null,null,null,null,null,null,null,null,null,null,null,null,null,null,null,null,null,null,null,null,null,null,null,null,null,null,null,null,null,null,null,null,null,null,null,null,null,null,null,null,null,null,null,null,null,null,null,null,null,null,null,null,null,null,null,null,null,null,null,null,null,null,null,null,null,null,null,null,null,null,null,null,null,null,null,null,null,null,null,null,null,null,null,null,null,null,null,null,null,null,"Muratura a conci regolari di pietra tenera ",null,null,null,null,null,null,2,3.2,0.04,0.08,0.1,0.19,1200,1620,400,500,14.5,14.5,"Muratura a conci regolari di pietra tenera ",1.6,1,1,1,1.2,1]
[null,null,null,null,null,null,null,null,null,null,null,null,null,null,null,null,null,null,null,null,null,null,null,null,null,null,null,null,null,null,null,null,null,null,null,null,null,null,null,null,null,null,null,null,null,null,null,null,null,null,null,null,null,null,null,null,null,null,null,null,null,null,null,null,null,null,null,null,null,null,null,null,null,null,null,null,null,null,null,null,null,null,null,null,null,null,null,null,null,null,null,null,null,null,null,null,null,null,null,null,null,null,null,null,null,null,null,null,null,null,null,null,null,null,null,null,null,null,null,null,null,null,null,null,null,null,null,null,null,null,null,null,null,null,null,null,null,null,null,null,null,null,null,null,null,null,null,null,null,null,null,null,null,null,null,null,null,null,null,null,null,null,null,null,null,null,null,null,null,null,null,null,null,null,null,null,null,null,null,null,null,null,null,null,null,null,null,null,null,null,null,null,null,null,null,null,null,null,null,null,null,null,null,null,"Muratura a blocchi lapidei squadrati",null,null,null,null,null,null,5.8,8.1999999999999993,0.09,0.12,0.18,0.28000000000000003,2400,3300,800,1100,22,22,"Muratura a blocchi lapidei squadrati",1.2,1,1,1,1.2,1]
[null,null,null,null,null,null,null,null,null,null,null,null,null,null,null,null,null,null,null,null,null,null,null,null,null,null,null,null,null,null,null,null,null,null,null,null,null,null,null,null,null,null,null,null,null,null,null,null,null,null,null,null,null,null,null,null,null,null,null,null,null,null,null,null,null,null,null,null,null,null,null,null,null,null,null,null,null,null,null,null,null,null,null,null,null,null,null,null,null,null,null,null,null,null,null,null,null,null,null,null,null,null,null,null,null,null,null,null,null,null,null,null,null,null,null,null,null,null,null,null,null,null,null,null,null,null,null,null,null,null,null,null,null,null,null,null,null,null,null,null,null,null,null,null,null,null,null,null,null,null,null,null,null,null,null,null,null,null,null,null,null,null,null,null,null,null,null,null,null,null,null,null,null,null,null,null,null,null,null,null,null,null,null,null,null,null,null,null,null,null,null,null,null,null,null,null,null,null,null,null,null,null,null,null,"Muratura in mattoni pieni e malta di calce",null,null,null,null,null,null,2.6,4.3,0.05,0.13,0.13,0.27,1200,1800,400,600,18,18,"Muratura in mattoni pieni e malta di calce",{"$f":"HD135^0.35","v":1},1,1,1,1.3,1]
[null,null,null,null,null,null,null,null,null,null,null,null,null,null,null,null,null,null,null,null,null,null,null,null,null,null,null,null,null,null,null,null,null,null,null,null,null,null,null,null,null,null,null,null,null,null,null,null,null,null,null,null,null,null,null,null,null,null,null,null,null,null,null,null,null,null,null,null,null,null,null,null,null,null,null,null,null,null,null,null,null,null,null,null,null,null,null,null,null,null,null,null,null,null,null,null,null,null,null,null,null,null,null,null,null,null,null,null,null,null,null,null,null,null,null,null,null,null,null,null,null,null,null,null,null,null,null,null,null,null,null,null,null,null,null,null,null,null,null,null,null,null,null,null,null,null,null,null,null,null,null,null,null,null,null,null,null,null,null,null,null,null,null,null,null,null,null,null,null,null,null,null,null,null,null,null,null,null,null,null,null,null,null,null,null,null,null,null,null,null,null,null,null,null,null,null,null,null,null,null,null,null,null,null,"Muratura in mattoni semipieni con malta cementizia",null,null,null,null,null,null,5,8,0.08,0.17,0.2,0.36,3500,5600,875,1400,15,15,"Muratura in mattoni semipieni con malta cementizia",1.2,1,1,1,1,1]
[null,null,null,null,null,null,null,null,null,null,null,null,null,null,null,null,null,null,null,null,null,null,null,null,null,null,null,null,null,null,null,null,null,null,null,null,null,null,null,null,null,null,null,null,null,null,null,null,null,null,null,null,null,null,null,null,null,null,null,null,null,null,null,null,null,null,null,null,null,null,null,null,null,null,null,null,null,null,null,null,null,null,null,null,null,null,null,null,null,null,null,null,null,null,null,null,null,null,null,null,null,null,null,null,null,null,null,null,null,null,null,null,null,null,null,null,null,null,null,null,null,null,null,null,null,null,null,null,null,null,null,null,null,null,null,null,null,null,null,null,null,null,null,null,null,null,null,null,null,null,null,null,null,null,null,null,null,null,null,null,null,null,null,null,null,null,null,null,null,null,null,null,null,null,null,null,null,null,null,null,null,null,null,null,null,null,null,null,null,null,null,null,null,null,null,null,null,null,null,null,null,null,null,null,null,null,null,null,null,null,null,{"$f":"VLOOKUP($G$9,$GW$122:$HO$129,8,FALSE)","v":1},{"$f":"VLOOKUP($G$9,$GW$122:$HO$129,9,FALSE)","v":2},{"$f":"VLOOKUP($G$9,$GW$122:$HO$129,10,FALSE)","v":1.7999999999999999E-2},{"$f":"VLOOKUP($G$9,$GW$122:$HO$129,11,FALSE)","v":3.2000000000000001E-2},{"$f":"VLOOKUP($G$9,$GW$122:$HO$129,12,FALSE)","v":"-"},{"$f":"VLOOKUP($G$9,$GW$122:$HO$129,13,FALSE)","v":"-"},{"$f":"VLOOKUP($G$9,$GW$122:$HO$129,14,FALSE)","v":690},{"$f":"VLOOKUP($G$9,$GW$122:$HO$129,15,FALSE)","v":1050},{"$f":"VLOOKUP($G$9,$GW$122:$HO$129,16,FALSE)","v":230},{"$f":"VLOOKUP($G$9,$GW$122:$HO$129,17,FALSE)","v":350},{"$f":"VLOOKUP($G$9,$GW$122:$HO$129,18,FALSE)","v":19},{"$f":"VLOOKUP($G$9,$GW$122:$HO$129,19,FALSE)","v":19},null,{"$f":"VLOOKUP($G$9,$HP$122:$HV$129,2,FALSE)","v":1.5},{"$f":"VLOOKUP($G$9,$HP$122:$HV$129,3,FALSE)","v":1},{"$f":"VLOOKUP($G$9,$HP$122:$HV$129,4,FALSE)","v":1.3},{"$f":"VLOOKUP($G$9,$HP$122:$HV$129,5,FALSE)","v":1},{"$f":"VLOOKUP($G$9,$HP$122:$HV$129,6,FALSE)","v":1.5},{"$f":"VLOOKUP($G$9,$HP$122:$HV$129,7,FALSE)","v":1}]
[]
[null,null,null,null,null,null,null,null,null,null,null,null,null,null,null,null,null,null,null,null,null,null,null,null,null,null,null,null,null,null,null,null,null,null,null,null,null,null,null,null,null,null,null,null,null,null,null,null,null,null,null,null,null,null,null,null,null,null,null,null,null,null,null,null,null,null,null,null,null,null,null,null,null,null,null,null,null,null,null,null,null,null,null,null,null,null,null,null,null,null,null,null,null,null,null,null,null,null,null,null,null,null,null,null,null,null,null,null,null,null,null,null,null,null,null,null,null,null,null,null,null,null,null,null,null,null,null,null,null,null,null,null,null,null,null,null,null,null,null,null,null,null,null,null,null,null,null,null,null,null,null,null,null,null,null,null,null,null,null,null,null,null,null,null,null,null,null,null,null,null,null,null,null,null,null,null,null,null,null,null,null,null,null,null,null,null,null,null,null,null,null,null,null,null,null,null,null,null,null,null,null,null,null,null,null,null,1,{"$f":"VLOOKUP(GY132,HB132:HC134,2)","v":"LC1"},null,1,"LC1",{"$f":"MIN(HD130:HE130)","v":1},null,{"$f":"MIN(HF130:HG130)","v":1.7999999999999999E-2},null,{"$f":"MIN(HH130:HI130)","v":0},null,{"$f":"AVERAGE(HJ130:HK130)","v":870},null,{"$f":"AVERAGE(HL130:HM130)","v":290},null,null,null,null,"Malta",null,"ricorsi",null,"conn",null,null,null,"Coeff migliorativi"]
[null,null,null,null,null,null,null,null,null,null,null,null,null,null,null,null,null,null,null,null,null,null,null,null,null,null,null,null,null,null,null,null,null,null,null,null,null,null,null,null,null,null,null,null,null,null,null,null,null,null,null,null,null,null,null,null,null,null,null,null,null,null,null,null,null,null,null,null,null,null,null,null,null,null,null,null,null,null,null,null,null,null,null,null,null,null,null,null,null,null,null,null,null,null,null,null,null,null,null,null,null,null,null,null,null,null,null,null,null,null,null,null,null,null,null,null,null,null,null,null,null,null,null,null,null,null,null,null,null,null,null,null,null,null,null,null,null,null,null,null,null,null,null,null,null,null,null,null,null,null,null,null,null,null,null,null,null,null,null,null,null,null,null,null,null,null,null,null,null,null,null,null,null,null,null,null,null,null,null,null,null,null,null,null,null,null,null,null,null,null,null,null,null,null,null,null,null,null,null,null,null,null,null,null,null,null,null,null,null,2,"LC2",0,null,0,null,{"$f":"AVERAGE(HH130:HI130)","v":{"$error":"#DIV/0!"}},null,0,null,0,null,null,null,true,{"$f":"HQ130","v":1.5},null,{"$f":"HS130","v":1.3},null,{"$f":"HU130","v":1.5},null,null,null,false,"malta buona"]
[null,null,null,null,null,null,null,null,null,null,null,null,null,null,null,null,null,null,null,null,null,null,null,null,null,null,null,null,null,null,null,null,null,null,null,null,null,null,null,null,null,null,null,null,null,null,null,null,null,null,null,null,null,null,null,null,null,null,null,null,null,null,null,null,null,null,null,null,null,null,null,null,null,null,null,null,null,null,null,null,null,null,null,null,null,null,null,null,null,null,null,null,null,null,null,null,null,null,null,null,null,null,null,null,null,null,null,null,null,null,null,null,null,null,null,null,null,null,null,null,null,null,null,null,null,null,null,null,null,null,null,null,null,null,null,null,null,null,null,null,null,null,null,null,null,null,null,null,null,null,null,null,null,null,null,null,null,null,null,null,null,null,null,null,null,null,null,null,null,null,null,null,null,null,null,null,null,null,null,null,null,null,null,null,null,null,null,null,null,null,null,null,null,null,null,null,null,null,null,null,null,null,null,null,null,null,null,null,null,3,"LC3",null,null,null,null,null,null,null,null,null,null,null,null,false,{"$f":"HR130","v":1},null,{"$f":"HT130","v":1},null,{"$f":"HV130","v":1},null,null,null,false,"ricorsi o listature "]
[null,null,null,null,null,null,null,null,null,null,null,null,null,null,null,null,null,null,null,null,null,null,null,null,null,null,null,null,null,null,null,null,null,null,null,null,null,null,null,null,null,null,null,null,null,null,null,null,null,null,null,null,null,null,null,null,null,null,null,null,null,null,null,null,null,null,null,null,null,null,null,null,null,null,null,null,null,null,null,null,null,null,null,null,null,null,null,null,null,null,null,null,null,null,null,null,null,null,null,null,null,null,null,null,null,null,null,null,null,null,null,null,null,null,null,null,null,null,null,null,null,null,null,null,null,null,null,null,null,null,null,null,null,null,null,null,null,null,null,null,null,null,null,null,null,null,null,null,null,null,null,null,null,null,null,null,null,null,null,null,null,null,null,null,null,null,null,null,null,null,null,null,null,null,null,null,null,null,null,null,null,null,null,null,null,null,null,null,null,null,null,null,null,null,null,null,null,null,null,null,null,null,null,null,null,null,null,null,null,null,null,{"$f":"VLOOKUP($GZ$132,$HC$132:$HM$133,2,FALSE)","v":1},null,{"$f":"VLOOKUP($GZ$132,$HC$132:$HM$133,4,FALSE)","v":1.7999999999999999E-2},null,{"$f":"VLOOKUP($GZ$132,$HC$132:$HM$133,6,FALSE)","v":0},null,{"$f":"VLOOKUP($GZ$132,$HC$132:$HM$133,8,FALSE)","v":870},null,{"$f":"VLOOKUP($GZ$132,$HC$132:$HM$133,10,FALSE)","v":290},null,null,null,null,{"$f":"VLOOKUP($HY$133,$HP$133:$HV$134,2,FALSE)","v":1},null,{"$f":"VLOOKUP($HY$134,$HP$133:$HV$134,4,FALSE)","v":1},null,{"$f":"VLOOKUP($HY$135,$HP$133:$HV$134,6,FALSE)","v":1},null,null,null,false,"connessione trasversale"]
[null,null,null,null,null,null,null,null,null,null,null,null,null,null,null,null,null,null,null,null,null,null,null,null,null,null,null,null,null,null,null,null,null,null,null,null,null,null,null,null,null,null,null,null,null,null,null,null,null,null,null,null,null,null,null,null,null,null,null,null,null,null,null,null,null,null,null,null,null,null,null,null,null,null,null,null,null,null,null,null,null,null,null,null,null,null,null,null,null,null,null,null,null,null,null,null,null,null,null,null,null,null,null,null,null,null,null,null,null,null,null,null,null,null,null,null,null,null,null,null,null,null,null,null,null,null,null,null,null,null,null,null,null,null,null,null,null,null,null,null,null,null,null,null,null,null,null,null,null,null,null,null,null,null,null,null,null,null,null,null,null,null,null,null,null,null,null,null,null,null,null,null,null,null,null,null,null,null,null,null,null,null,null,null,null,null,null,null,null,null,null,null,null,null,null,null,null,null,null,null,null,null,null,null,null,null,null,null,null,null,null,{"$f":"(HQ135*HS135*HU135)/MIN(HQ135,HS135,HU135)*HD135","v":1},null,{"$f":"(HQ135*HS135*HU135)/MIN(HQ135,HS135,HU135)*HF135","v":1.7999999999999999E-2},null,null,null,{"$f":"HQ135*HJ135","v":870},null,{"$f":"HL135*HQ135","v":290}]
[null,null,null,null,null,null,null,null,null,null,null,null,null,null,null,null,null,null,null,null,null,null,null,null,null,null,null,null,null,null,null,null,null,null,null,null,null,null,null,null,null,null,null,null,null,null,null,null,null,null,null,null,null,null,null,null,null,null,null,null,null,null,null,null,null,null,null,null,null,null,null,null,null,null,null,null,null,null,null,null,null,null,null,null,null,null,null,null,null,null,null,null,null,null,null,null,null,null,null,null,null,null,null,null,null,null,null,null,null,null,null,null,null,null,null,null,null,null,null,null,null,null,null,null,null,null,null,null,null,null,null,null,null,null,null,null,null,null,null,null,null,null,null,null,null,null,null,null,null,null,null,null,null,null,null,null,null,null,null,null,null,null,null,null,null,null,null,null,null,null,null,null,null,null,null,null,null,null,null,null,null,null,null,null,null,null,null,null,null,null,null,null,null,null,null,null,null,null,null,null,null,null,null,null,null,null,"Spessore muratura"]
[null,null,null,null,null,null,null,null,null,null,null,null,null,null,null,null,null,null,null,null,null,null,null,null,null,null,null,null,null,null,null,null,null,null,null,null,null,null,null,null,null,null,null,null,null,null,null,null,null,null,null,null,null,null,null,null,null,null,null,null,null,null,null,null,null,null,null,null,null,null,null,null,null,null,null,null,null,null,null,null,null,null,null,null,null,null,null,null,null,null,null,null,null,null,null,null,null,null,null,null,null,null,null,null,null,null,null,null,null,null,null,null,null,null,null,null,null,null,null,null,null,null,null,null,null,null,null,null,null,null,null,null,null,null,null,null,null,null,null,null,null,null,null,null,null,null,null,null,null,null,null,null,null,null,null,null,null,null,null,null,null,null,null,null,null,null,null,null,null,null,null,null,null,null,null,null,null,null,null,null,null,null,null,null,null,null,null,null,null,null,null,null,null,null,null,null,null,null,null,null,null,null,null,null,null,null,"300"]
[]
[null,null,null,null,null,null,null,null,null,null,null,null,null,null,null,null,null,null,null,null,null,null,null,null,null,null,null,null,null,null,null,null,null,null,null,null,null,null,null,null,null,null,null,null,null,null,null,null,null,null,null,null,null,null,null,null,null,null,null,null,null,null,null,null,null,null,null,null,null,null,null,null,null,null,null,null,null,null,null,null,null,null,null,null,null,null,null,null,null,null,null,null,null,null,null,null,null,null,null,null,null,null,null,null,null,null,null,null,null,null,null,null,null,null,null,null,null,null,null,null,null,null,null,null,null,null,null,null,null,null,null,null,null,null,null,null,null,null,null,null,null,null,null,null,null,null,null,null,null,null,null,null,null,null,null,null,null,null,null,null,null,null,null,null,null,null,null,null,null,null,null,null,null,null,null,null,null,null,null,null,null,null,null,null,null,null,null,null,null,null,null,null,null,null,null,null,null,null,null,null,null,null,null,null,"Mesistente",null,null,null,null,null,null,"b","b'",null,"Intonaci",null,null,"fflex N/mm2",null,"Eint N/mm2",null,"tmin mm",null,"ft N/mm2","fc N/mm2",null,"Reti",null,"ftmrete N","fcrete","Erete","passo mm","sez. mm2","Ear"]
[null,null,null,null,null,null,null,null,null,null,null,null,null,null,null,null,null,null,null,null,null,null,null,null,null,null,null,null,null,null,null,null,null,null,null,null,null,null,null,null,null,null,null,null,null,null,null,null,null,null,null,null,null,null,null,null,null,null,null,null,null,null,null,null,null,null,null,null,null,null,null,null,null,null,null,null,null,null,null,null,null,null,null,null,null,null,null,null,null,null,null,null,null,null,null,null,null,null,null,null,null,null,null,null,null,null,null,null,null,null,null,null,null,null,null,null,null,null,null,null,null,null,null,null,null,null,null,null,null,null,null,null,null,null,null,null,null,null,null,null,null,null,null,null,null,null,null,null,null,null,null,null,null,null,null,null,null,null,null,null,null,null,null,null,null,null,null,null,null,null,null,null,null,null,null,null,null,null,null,null,null,null,null,null,null,null,null,null,null,null,null,null,null,null,null,null,null,null,null,null,null,null,null,null,"Muratura in pietrame disordinata ",null,null,null,null,null,null,1.5,1.4,null,"FM55",null,null,5,null,9000,null,15,null,{"$f":"HJ141/1.4","v":3.5714285714285716},15,null,"RG NET BA G33",null,4500,null,40000,33,7.0650000000000004,{"$f":"HW141*HY141","v":282600}]
[null,null,null,null,null,null,null,null,null,null,null,null,null,null,null,null,null,null,null,null,null,null,null,null,null,null,null,null,null,null,null,null,null,null,null,null,null,null,null,null,null,null,null,null,null,null,null,null,null,null,null,null,null,null,null,null,null,null,null,null,null,null,null,null,null,null,null,null,null,null,null,null,null,null,null,null,null,null,null,null,null,null,null,null,null,null,null,null,null,null,null,null,null,null,null,null,null,null,null,null,null,null,null,null,null,null,null,null,null,null,null,null,null,null,null,null,null,null,null,null,null,null,null,null,null,null,null,null,null,null,null,null,null,null,null,null,null,null,null,null,null,null,null,null,null,null,null,null,null,null,null,null,null,null,null,null,null,null,null,null,null,null,null,null,null,null,null,null,null,null,null,null,null,null,null,null,null,null,null,null,null,null,null,null,null,null,null,null,null,null,null,null,null,null,null,null,null,null,null,null,null,null,null,null,"Muratura a conci sbozzati, con paramenti di spessore disomogeneo",null,null,null,null,null,null,1.5,1.4,null,"BETM35-FIBRO",null,null,8,null,39000,null,15,null,{"$f":"HJ142/1.4","v":5.7142857142857144},35,null,"RG NET BA G66",null,4500,null,40000,66,7.0650000000000004,{"$f":"HW142*HY142","v":282600}]
[null,null,null,null,null,null,null,null,null,null,null,null,null,null,null,null,null,null,null,null,null,null,null,null,null,null,null,null,null,null,null,null,null,null,null,null,null,null,null,null,null,null,null,null,null,null,null,null,null,null,null,null,null,null,null,null,null,null,null,null,null,null,null,null,null,null,null,null,null,null,null,null,null,null,null,null,null,null,null,null,null,null,null,null,null,null,null,null,null,null,null,null,null,null,null,null,null,null,null,null,null,null,null,null,null,null,null,null,null,null,null,null,null,null,null,null,null,null,null,null,null,null,null,null,null,null,null,null,null,null,null,null,null,null,null,null,null,null,null,null,null,null,null,null,null,null,null,null,null,null,null,null,null,null,null,null,null,null,null,null,null,null,null,null,null,null,null,null,null,null,null,null,null,null,null,null,null,null,null,null,null,null,null,null,null,null,null,null,null,null,null,null,null,null,null,null,null,null,null,null,null,null,null,null,"Muratura in pietre a spacco con buona tessitura",null,null,null,null,null,null,1.5,1.2,null,"BETM35-MEC",null,null,7,null,39000,null,15,null,{"$f":"HJ143/1.4","v":5},35,null,"RG NET BA G99",null,4500,null,40000,99,7.0650000000000004,{"$f":"HW143*HY143","v":282600}]
[null,null,null,null,null,null,null,null,null,null,null,null,null,null,null,null,null,null,null,null,null,null,null,null,null,null,null,null,null,null,null,null,null,null,null,null,null,null,null,null,null,null,null,null,null,null,null,null,null,null,null,null,null,null,null,null,null,null,null,null,null,null,null,null,null,null,null,null,null,null,null,null,null,null,null,null,null,null,null,null,null,null,null,null,null,null,null,null,null,null,null,null,null,null,null,null,null,null,null,null,null,null,null,null,null,null,null,null,null,null,null,null,null,null,null,null,null,null,null,null,null,null,null,null,null,null,null,null,null,null,null,null,null,null,null,null,null,null,null,null,null,null,null,null,null,null,null,null,null,null,null,null,null,null,null,null,null,null,null,null,null,null,null,null,null,null,null,null,null,null,null,null,null,null,null,null,null,null,null,null,null,null,null,null,null,null,null,null,null,null,null,null,null,null,null,null,null,null,null,null,null,null,null,null,"Muratura irregolare di pietra tenera ",null,null,null,null,null,null,1.5,1.2,null,"FM55",null,null,{"$f":"VLOOKUP($HG$144,$HG$141:$HQ$143,4,FALSE)","v":5},null,{"$f":"VLOOKUP($HG$144,$HG$141:$HQ$143,6,FALSE)","v":9000},null,{"$f":"VLOOKUP($HG$144,$HG$141:$HQ$143,8,FALSE)","v":15},null,{"$f":"VLOOKUP($HG$144,$HG$141:$HQ$143,10,FALSE)","v":3.5714285714285716},{"$f":"VLOOKUP($HG$144,$HG$141:$HQ$143,11,FALSE)","v":15},null,"RG NET BA G33",null,{"$f":"VLOOKUP($HS$144,$HS$141:$HZ$143,3,FALSE)","v":4500},null,{"$f":"VLOOKUP($HS$144,$HS$141:$HZ$143,5,FALSE)","v":40000},{"$f":"VLOOKUP($HS$144,$HS$141:$HZ$143,6,FALSE)","v":33},{"$f":"VLOOKUP($HS$144,$HS$141:$HZ$143,7,FALSE)","v":7.0650000000000004},{"$f":"VLOOKUP($HS$144,$HS$141:$HZ$143,8,FALSE)","v":282600}]
[null,null,null,null,null,null,null,null,null,null,null,null,null,null,null,null,null,null,null,null,null,null,null,null,null,null,null,null,null,null,null,null,null,null,null,null,null,null,null,null,null,null,null,null,null,null,null,null,null,null,null,null,null,null,null,null,null,null,null,null,null,null,null,null,null,null,null,null,null,null,null,null,null,null,null,null,null,null,null,null,null,null,null,null,null,null,null,null,null,null,null,null,null,null,null,null,null,null,null,null,null,null,null,null,null,null,null,null,null,null,null,null,null,null,null,null,null,null,null,null,null,null,null,null,null,null,null,null,null,null,null,null,null,null,null,null,null,null,null,null,null,null,null,null,null,null,null,null,null,null,null,null,null,null,null,null,null,null,null,null,null,null,null,null,null,null,null,null,null,null,null,null,null,null,null,null,null,null,null,null,null,null,null,null,null,null,null,null,null,null,null,null,null,null,null,null,null,null,null,null,null,null,null,null,"Muratura a conci regolari di pietra tenera ",null,null,null,null,null,null,1.5,1.2]
[null,null,null,null,null,null,null,null,null,null,null,null,null,null,null,null,null,null,null,null,null,null,null,null,null,null,null,null,null,null,null,null,null,null,null,null,null,null,null,null,null,null,null,null,null,null,null,null,null,null,null,null,null,null,null,null,null,null,null,null,null,null,null,null,null,null,null,null,null,null,null,null,null,null,null,null,null,null,null,null,null,null,null,null,null,null,null,null,null,null,null,null,null,null,null,null,null,null,null,null,null,null,null,null,null,null,null,null,null,null,null,null,null,null,null,null,null,null,null,null,null,null,null,null,null,null,null,null,null,null,null,null,null,null,null,null,null,null,null,null,null,null,null,null,null,null,null,null,null,null,null,null,null,null,null,null,null,null,null,null,null,null,null,null,null,null,null,null,null,null,null,null,null,null,null,null,null,null,null,null,null,null,null,null,null,null,null,null,null,null,null,null,null,null,null,null,null,null,null,null,null,null,null,null,"Muratura a blocchi lapidei squadrati",null,null,null,null,null,null,1.5,1.2]
[null,null,null,null,null,null,null,null,null,null,null,null,null,null,null,null,null,null,null,null,null,null,null,null,null,null,null,null,null,null,null,null,null,null,null,null,null,null,null,null,null,null,null,null,null,null,null,null,null,null,null,null,null,null,null,null,null,null,null,null,null,null,null,null,null,null,null,null,null,null,null,null,null,null,null,null,null,null,null,null,null,null,null,null,null,null,null,null,null,null,null,null,null,null,null,null,null,null,null,null,null,null,null,null,null,null,null,null,null,null,null,null,null,null,null,null,null,null,null,null,null,null,null,null,null,null,null,null,null,null,null,null,null,null,null,null,null,null,null,null,null,null,null,null,null,null,null,null,null,null,null,null,null,null,null,null,null,null,null,null,null,null,null,null,null,null,null,null,null,null,null,null,null,null,null,null,null,null,null,null,null,null,null,null,null,null,null,null,null,null,null,null,null,null,null,null,null,null,null,null,null,null,null,null,"Muratura in mattoni pieni e malta di calce",null,null,null,null,null,null,1.3,1]
[null,null,null,null,null,null,null,null,null,null,null,null,null,null,null,null,null,null,null,null,null,null,null,null,null,null,null,null,null,null,null,null,null,null,null,null,null,null,null,null,null,null,null,null,null,null,null,null,null,null,null,null,null,null,null,null,null,null,null,null,null,null,null,null,null,null,null,null,null,null,null,null,null,null,null,null,null,null,null,null,null,null,null,null,null,null,null,null,null,null,null,null,null,null,null,null,null,null,null,null,null,null,null,null,null,null,null,null,null,null,null,null,null,null,null,null,null,null,null,null,null,null,null,null,null,null,null,null,null,null,null,null,null,null,null,null,null,null,null,null,null,null,null,null,null,null,null,null,null,null,null,null,null,null,null,null,null,null,null,null,null,null,null,null,null,null,null,null,null,null,null,null,null,null,null,null,null,null,null,null,null,null,null,null,null,null,null,null,null,null,null,null,null,null,null,null,null,null,null,null,null,null,null,null,"Muratura in mattoni semipieni con malta cementizia",null,null,null,null,null,null,1.3,1]
[null,null,null,null,null,null,null,null,null,null,null,null,null,null,null,null,null,null,null,null,null,null,null,null,null,null,null,null,null,null,null,null,null,null,null,null,null,null,null,null,null,null,null,null,null,null,null,null,null,null,null,null,null,null,null,null,null,null,null,null,null,null,null,null,null,null,null,null,null,null,null,null,null,null,null,null,null,null,null,null,null,null,null,null,null,null,null,null,null,null,null,null,null,null,null,null,null,null,null,null,null,null,null,null,null,null,null,null,null,null,null,null,null,null,null,null,null,null,null,null,null,null,null,null,null,null,null,null,null,null,null,null,null,null,null,null,null,null,null,null,null,null,null,null,null,null,null,null,null,null,null,null,null,null,null,null,null,null,null,null,null,null,null,null,null,null,null,null,null,null,null,null,null,null,null,null,null,null,null,null,null,null,null,null,null,null,null,null,null,null,null,null,null,null,null,null,null,null,null,null,null,null,null,null,{"$f":"G9","v":"Muratura in pietrame disordinata "},null,null,null,null,null,null,{"$f":"VLOOKUP($GW$149,$GW$141:$HE$148,8,FALSE)","v":1.5},{"$f":"VLOOKUP($GW$149,$GW$141:$HE$148,9,FALSE)","v":1.4},null,"Connettori",null,null,null,null,null,null,"TEST"]
[null,null,null,null,null,null,null,null,null,null,null,null,null,null,null,null,null,null,null,null,null,null,null,null,null,null,null,null,null,null,null,null,null,null,null,null,null,null,null,null,null,null,null,null,null,null,null,null,null,null,null,null,null,null,null,null,null,null,null,null,null,null,null,null,null,null,null,null,null,null,null,null,null,null,null,null,null,null,null,null,null,null,null,null,null,null,null,null,null,null,null,null,null,null,null,null,null,null,null,null,null,null,null,null,null,null,null,null,null,null,null,null,null,null,null,null,null,null,null,null,null,null,null,null,null,null,null,null,null,null,null,null,null,null,null,null,null,null,null,null,null,null,null,null,null,null,null,null,null,null,null,null,null,null,null,null,null,null,null,null,null,null,null,null,null,null,null,null,null,null,null,null,null,null,null,null,null,null,null,null,null,null,null,null,null,null,null,null,null,null,null,null,null,null,null,null,null,null,null,null,null,null,null,null,null,null,null,null,null,null,null,null,null,null,1,null,null,"spessore intonaco",null,null,null,{"$f":"IF(AND('3'!C37=\"Malta bilanciata\",'3'!C38=\"Rete bilanciata\"),\"V\",\"F\")","v":"F"},{"$f":"IF(HK151<=50,\"V\",\"F\")","v":"V"}]
[null,null,null,null,null,null,null,null,null,null,null,null,null,null,null,null,null,null,null,null,null,null,null,null,null,null,null,null,null,null,null,null,null,null,null,null,null,null,null,null,null,null,null,null,null,null,null,null,null,null,null,null,null,null,null,null,null,null,null,null,null,null,null,null,null,null,null,null,null,null,null,null,null,null,null,null,null,null,null,null,null,null,null,null,null,null,null,null,null,null,null,null,null,null,null,null,null,null,null,null,null,null,null,null,null,null,null,null,null,null,null,null,null,null,null,null,null,null,null,null,null,null,null,null,null,null,null,null,null,null,null,null,null,null,null,null,null,null,null,null,null,null,null,null,null,null,null,null,null,null,null,null,null,null,null,null,null,null,null,null,null,null,null,null,null,null,null,null,null,null,null,null,null,null,null,null,null,null,null,null,null,null,null,null,null,null,null,null,null,null,null,null,null,null,null,null,null,null,null,null,null,null,null,null,"Sacco","b","b'",null,null,null,null,null,null,null,2,null,null,"30",{"$f":"VALUE(HJ151)","v":30},null,null,{"$f":"IF('3'!K15>=30,\"V\",\"F\")","v":"V"}]
[null,null,null,null,null,null,null,null,null,null,null,null,null,null,null,null,null,null,null,null,null,null,null,null,null,null,null,null,null,null,null,null,null,null,null,null,null,null,null,null,null,null,null,null,null,null,null,null,null,null,null,null,null,null,null,null,null,null,null,null,null,null,null,null,null,null,null,null,null,null,null,null,null,null,null,null,null,null,null,null,null,null,null,null,null,null,null,null,null,null,null,null,null,null,null,null,null,null,null,null,null,null,null,null,null,null,null,null,null,null,null,null,null,null,null,null,null,null,null,null,null,null,null,null,null,null,null,null,null,null,null,null,null,null,null,null,null,null,null,null,null,null,null,null,null,null,null,null,null,null,null,null,null,null,null,null,null,null,null,null,null,null,null,null,null,null,null,null,null,null,null,null,null,null,null,null,null,null,null,null,null,null,null,null,null,null,null,null,null,null,null,null,null,null,null,null,null,null,null,null,null,null,null,null,true,1,1.2,null,null,null,null,null,null,null,3]
[null,null,null,null,null,null,null,null,null,null,null,null,null,null,null,null,null,null,null,null,null,null,null,null,null,null,null,null,null,null,null,null,null,null,null,null,null,null,null,null,null,null,null,null,null,null,null,null,null,null,null,null,null,null,null,null,null,null,null,null,null,null,null,null,null,null,null,null,null,null,null,null,null,null,null,null,null,null,null,null,null,null,null,null,null,null,null,null,null,null,null,null,null,null,null,null,null,null,null,null,null,null,null,null,null,null,null,null,null,null,null,null,null,null,null,null,null,null,null,null,null,null,null,null,null,null,null,null,null,null,null,null,null,null,null,null,null,null,null,null,null,null,null,null,null,null,null,null,null,null,null,null,null,null,null,null,null,null,null,null,null,null,null,null,null,null,null,null,null,null,null,null,null,null,null,null,null,null,null,null,null,null,null,null,null,null,null,null,null,null,null,null,null,null,null,null,null,null,null,null,null,null,null,null,false,{"$f":"HD149","v":1.5},{"$f":"HE149","v":1.4},null,null,null,null,null,null,null,4]
[null,null,null,null,null,null,null,null,null,null,null,null,null,null,null,null,null,null,null,null,null,null,null,null,null,null,null,null,null,null,null,null,null,null,null,null,null,null,null,null,null,null,null,null,null,null,null,null,null,null,null,null,null,null,null,null,null,null,null,null,null,null,null,null,null,null,null,null,null,null,null,null,null,null,null,null,null,null,null,null,null,null,null,null,null,null,null,null,null,null,null,null,null,null,null,null,null,null,null,null,null,null,null,null,null,null,null,null,null,null,null,null,null,null,null,null,null,null,null,null,null,null,null,null,null,null,null,null,null,null,null,null,null,null,null,null,null,null,null,null,null,null,null,null,null,null,null,null,null,null,null,null,null,null,null,null,null,null,null,null,null,null,null,null,null,null,null,null,null,null,null,null,null,null,null,null,null,null,null,null,null,null,null,null,null,null,null,null,null,null,null,null,null,null,null,null,null,null,null,null,null,null,null,null,false,{"$f":"VLOOKUP($GW$154,$GW$152:$GY$153,2,FALSE)","v":1.5},{"$f":"VLOOKUP($GW$154,$GW$152:$GY$153,3,FALSE)","v":1.4},null,null,null,null,null,null,null,5]
[null,null,null,null,null,null,null,null,null,null,null,null,null,null,null,null,null,null,null,null,null,null,null,null,null,null,null,null,null,null,null,null,null,null,null,null,null,null,null,null,null,null,null,null,null,null,null,null,null,null,null,null,null,null,null,null,null,null,null,null,null,null,null,null,null,null,null,null,null,null,null,null,null,null,null,null,null,null,null,null,null,null,null,null,null,null,null,null,null,null,null,null,null,null,null,null,null,null,null,null,null,null,null,null,null,null,null,null,null,null,null,null,null,null,null,null,null,null,null,null,null,null,null,null,null,null,null,null,null,null,null,null,null,null,null,null,null,null,null,null,null,null,null,null,null,null,null,null,null,null,null,null,null,null,null,null,null,null,null,null,null,null,null,null,null,null,null,null,null,null,null,null,null,null,null,null,null,null,null,null,null,null,null,null,null,null,null,null,null,null,null,null,null,null,null,null,null,null,null,null,null,null,null,null,null,null,null,null,null,null,null,null,null,null,6]
[null,null,null,null,null,null,null,null,null,null,null,null,null,null,null,null,null,null,null,null,null,null,null,null,null,null,null,null,null,null,null,null,null,null,null,null,null,null,null,null,null,null,null,null,null,null,null,null,null,null,null,null,null,null,null,null,null,null,null,null,null,null,null,null,null,null,null,null,null,null,null,null,null,null,null,null,null,null,null,null,null,null,null,null,null,null,null,null,null,null,null,null,null,null,null,null,null,null,null,null,null,null,null,null,null,null,null,null,null,null,null,null,null,null,null,null,null,null,null,null,null,null,null,null,null,null,null,null,null,null,null,null,null,null,null,null,null,null,null,null,null,null,null,null,null,null,null,null,null,null,null,null,null,null,null,null,null,null,null,null,null,null,null,null,null,null,null,null,null,null,null,null,null,null,null,null,null,null,null,null,null,null,null,null,null,null,null,null,null,null,null,null,null,null,null,null,null,null,null,null,null,null,null,null,"facce","i1","i2","i3","g1","g2",null,null,null,null,"6"]
[null,null,null,null,null,null,null,null,null,null,null,null,null,null,null,null,null,null,null,null,null,null,null,null,null,null,null,null,null,null,null,null,null,null,null,null,null,null,null,null,null,null,null,null,null,null,null,null,null,null,null,null,null,null,null,null,null,null,null,null,null,null,null,null,null,null,null,null,null,null,null,null,null,null,null,null,null,null,null,null,null,null,null,null,null,null,null,null,null,null,null,null,null,null,null,null,null,null,null,null,null,null,null,null,null,null,null,null,null,null,null,null,null,null,null,null,null,null,null,null,null,null,null,null,null,null,null,null,null,null,null,null,null,null,null,null,null,null,null,null,null,null,null,null,null,null,null,null,null,null,null,null,null,null,null,null,null,null,null,null,null,null,null,null,null,null,null,null,null,null,null,null,null,null,null,null,null,null,null,null,null,null,null,null,null,null,null,null,null,null,null,null,null,null,null,null,null,null,null,null,null,null,null,null,2,1,0,2,1,2]
[null,null,null,null,null,null,null,null,null,null,null,null,null,null,null,null,null,null,null,null,null,null,null,null,null,null,null,null,null,null,null,null,null,null,null,null,null,null,null,null,null,null,null,null,null,null,null,null,null,null,null,null,null,null,null,null,null,null,null,null,null,null,null,null,null,null,null,null,null,null,null,null,null,null,null,null,null,null,null,null,null,null,null,null,null,null,null,null,null,null,null,null,null,null,null,null,null,null,null,null,null,null,null,null,null,null,null,null,null,null,null,null,null,null,null,null,null,null,null,null,null,null,null,null,null,null,null,null,null,null,null,null,null,null,null,null,null,null,null,null,null,null,null,null,null,null,null,null,null,null,null,null,null,null,null,null,null,null,null,null,null,null,null,null,null,null,null,null,null,null,null,null,null,null,null,null,null,null,null,null,null,null,null,null,null,null,null,null,null,null,null,null,null,null,null,null,null,null,null,null,null,null,null,null,1,0,0,1,0,1]
[null,null,null,null,null,null,null,null,null,null,null,null,null,null,null,null,null,null,null,null,null,null,null,null,null,null,null,null,null,null,null,null,null,null,null,null,null,null,null,null,null,null,null,null,null,null,null,null,null,null,null,null,null,null,null,null,null,null,null,null,null,null,null,null,null,null,null,null,null,null,null,null,null,null,null,null,null,null,null,null,null,null,null,null,null,null,null,null,null,null,null,null,null,null,null,null,null,null,null,null,null,null,null,null,null,null,null,null,null,null,null,null,null,null,null,null,null,null,null,null,null,null,null,null,null,null,null,null,null,null,null,null,null,null,null,null,null,null,null,null,null,null,null,null,null,null,null,null,null,null,null,null,null,null,null,null,null,null,null,null,null,null,null,null,null,null,null,null,null,null,null,null,null,null,null,null,null,null,null,null,null,null,null,null,null,null,null,null,null,null,null,null,null,null,null,null,null,null,null,null,null,null,null,null,1,{"$f":"VLOOKUP($GW$159,$GW$157:$GZ$158,2,FALSE)","v":0},{"$f":"VLOOKUP($GW$159,$GW$157:$GZ$158,3,FALSE)","v":0},{"$f":"VLOOKUP($GW$159,$GW$157:$GZ$158,4,FALSE)","v":1},{"$f":"VLOOKUP($GW$159,$GW$157:$HB$158,5,FALSE)","v":0},{"$f":"VLOOKUP($GW$159,$GW$157:$HB$158,6,FALSE)","v":1}]
[]
[null,null,null,null,null,null,null,null,null,null,null,null,null,null,null,null,null,null,null,null,null,null,null,null,null,null,null,null,null,null,null,null,null,null,null,null,null,null,null,null,null,null,null,null,null,null,null,null,null,null,null,null,null,null,null,null,null,null,null,null,null,null,null,null,null,null,null,null,null,null,null,null,null,null,null,null,null,null,null,null,null,null,null,null,null,null,null,null,null,null,null,null,null,null,null,null,null,null,null,null,null,null,null,null,null,null,null,null,null,null,null,null,null,null,null,null,null,null,null,null,null,null,null,null,null,null,null,null,null,null,null,null,null,null,null,null,null,null,null,null,null,null,null,null,null,null,null,null,null,null,null,null,null,null,null,null,null,null,null,null,null,null,null,null,null,null,null,null,null,null,null,null,null,null,null,null,null,null,null,null,null,null,null,null,null,null,null,null,null,null,null,null,null,null,null,null,null,null,null,null,null,null,null,null,"tau",null,null,null,null,"compressione",null,null,null,null,null,null,null,null,null,null,null,null,null,"csi"]
[null,null,null,null,null,null,null,null,null,null,null,null,null,null,null,null,null,null,null,null,null,null,null,null,null,null,null,null,null,null,null,null,null,null,null,null,null,null,null,null,null,null,null,null,null,null,null,null,null,null,null,null,null,null,null,null,null,null,null,null,null,null,null,null,null,null,null,null,null,null,null,null,null,null,null,null,null,null,null,null,null,null,null,null,null,null,null,null,null,null,null,null,null,null,null,null,null,null,null,null,null,null,null,null,null,null,null,null,null,null,null,null,null,null,null,null,null,null,null,null,null,null,null,null,null,null,null,null,null,null,null,null,null,null,null,null,null,null,null,null,null,null,null,null,null,null,null,null,null,null,null,null,null,null,null,null,null,null,null,null,null,null,null,null,null,null,null,null,null,null,null,null,null,null,null,null,null,null,null,null,null,null,null,null,null,null,null,null,null,null,null,null,null,null,null,null,null,null,null,null,null,null,null,null,{"$f":"(1+($GX$159*($GX$154-1)+$GY$159*($GY$154-1)))*1.5*$HF$136","v":2.6999999999999996E-2},{"$f":"$GZ$159*($HP$144*$HJ$151/$GY$138+$HZ$144*'2'!$K$20/($GY$138*$HX$144))","v":0.3684704184704185},null,null,null,"connessione trasversale",null,null,{"$f":"VLOOKUP($HY$135,HB168:HC169,2,FALSE)","v":2},null,"Muratura in pietrame disordinata ",null,null,null,null,null,null,null,1.5,1.5]
[null,null,null,null,null,null,null,null,null,null,null,null,null,null,null,null,null,null,null,null,null,null,null,null,null,null,null,null,null,null,null,null,null,null,null,null,null,null,null,null,null,null,null,null,null,null,null,null,null,null,null,null,null,null,null,null,null,null,null,null,null,null,null,null,null,null,null,null,null,null,null,null,null,null,null,null,null,null,null,null,null,null,null,null,null,null,null,null,null,null,null,null,null,null,null,null,null,null,null,null,null,null,null,null,null,null,null,null,null,null,null,null,null,null,null,null,null,null,null,null,null,null,null,null,null,null,null,null,null,null,null,null,null,null,null,null,null,null,null,null,null,null,null,null,null,null,null,null,null,null,null,null,null,null,null,null,null,null,null,null,null,null,null,null,null,null,null,null,null,null,null,null,null,null,null,null,null,null,null,null,null,null,null,null,null,null,null,null,null,null,null,null,null,null,null,null,null,null,null,null,null,null,null,null,null,null,null,null,null,"intervento su due facce",null,null,{"$f":"$GW$159","v":1},null,"Muratura a conci sbozzati, con paramenti di spessore disomogeneo",null,null,null,null,null,null,null,1.5,1.5]
[null,null,null,null,null,null,null,null,null,null,null,null,null,null,null,null,null,null,null,null,null,null,null,null,null,null,null,null,null,null,null,null,null,null,null,null,null,null,null,null,null,null,null,null,null,null,null,null,null,null,null,null,null,null,null,null,null,null,null,null,null,null,null,null,null,null,null,null,null,null,null,null,null,null,null,null,null,null,null,null,null,null,null,null,null,null,null,null,null,null,null,null,null,null,null,null,null,null,null,null,null,null,null,null,null,null,null,null,null,null,null,null,null,null,null,null,null,null,null,null,null,null,null,null,null,null,null,null,null,null,null,null,null,null,null,null,null,null,null,null,null,null,null,null,null,null,null,null,null,null,null,null,null,null,null,null,null,null,null,null,null,null,null,null,null,null,null,null,null,null,null,null,null,null,null,null,null,null,null,null,null,null,null,null,null,null,null,null,null,null,null,null,null,null,null,null,null,null,null,null,null,null,null,null,{"$f":"($GW$162+$GX$162)/1.5/1","v":0.26364694564694569},{"$f":"3.5*HF136","v":6.3E-2},null,null,null,"Numero di connett.",null,null,{"$f":"$HG$156","v":"6"},null,"Muratura in pietre a spacco con buona tessitura",null,null,null,null,null,null,null,1.05,1.5]
[null,null,null,null,null,null,null,null,null,null,null,null,null,null,null,null,null,null,null,null,null,null,null,null,null,null,null,null,null,null,null,null,null,null,null,null,null,null,null,null,null,null,null,null,null,null,null,null,null,null,null,null,null,null,null,null,null,null,null,null,null,null,null,null,null,null,null,null,null,null,null,null,null,null,null,null,null,null,null,null,null,null,null,null,null,null,null,null,null,null,null,null,null,null,null,null,null,null,null,null,null,null,null,null,null,null,null,null,null,null,null,null,null,null,null,null,null,null,null,null,null,null,null,null,null,null,null,null,null,null,null,null,null,null,null,null,null,null,null,null,null,null,null,null,null,null,null,null,null,null,null,null,null,null,null,null,null,null,null,null,null,null,null,null,null,null,null,null,null,null,null,null,null,null,null,null,null,null,null,null,null,null,null,null,null,null,null,null,null,null,null,null,null,null,null,null,null,null,null,null,null,null,null,null,null,null,null,null,null,"k3",null,null,{"$f":"VLOOKUP(GW149,HG162:HO170,9,FALSE)","v":1.5},null,"Muratura irregolare di pietra tenera ",null,null,null,null,null,null,null,1.05,1.5]
[null,null,null,null,null,null,null,null,null,null,null,null,null,null,null,null,null,null,null,null,null,null,null,null,null,null,null,null,null,null,null,null,null,null,null,null,null,null,null,null,null,null,null,null,null,null,null,null,null,null,null,null,null,null,null,null,null,null,null,null,null,null,null,null,null,null,null,null,null,null,null,null,null,null,null,null,null,null,null,null,null,null,null,null,null,null,null,null,null,null,null,null,null,null,null,null,null,null,null,null,null,null,null,null,null,null,null,null,null,null,null,null,null,null,null,null,null,null,null,null,null,null,null,null,null,null,null,null,null,null,null,null,null,null,null,null,null,null,null,null,null,null,null,null,null,null,null,null,null,null,null,null,null,null,null,null,null,null,null,null,null,null,null,null,null,null,null,null,null,null,null,null,null,null,null,null,null,null,null,null,null,null,null,null,null,null,null,null,null,null,null,null,null,null,null,null,null,null,null,null,null,null,null,null,null,null,null,null,null,"k",null,null,{"$f":"IF(AND($HE$162=2,$HE$163=2,VALUE($HE$164)=6),HE165,1)","v":1},null,"Muratura a conci regolari di pietra tenera ",null,null,null,null,null,null,null,1.05,1.5]
[null,null,null,null,null,null,null,null,null,null,null,null,null,null,null,null,null,null,null,null,null,null,null,null,null,null,null,null,null,null,null,null,null,null,null,null,null,null,null,null,null,null,null,null,null,null,null,null,null,null,null,null,null,null,null,null,null,null,null,null,null,null,null,null,null,null,null,null,null,null,null,null,null,null,null,null,null,null,null,null,null,null,null,null,null,null,null,null,null,null,null,null,null,null,null,null,null,null,null,null,null,null,null,null,null,null,null,null,null,null,null,null,null,null,null,null,null,null,null,null,null,null,null,null,null,null,null,null,null,null,null,null,null,null,null,null,null,null,null,null,null,null,null,null,null,null,null,null,null,null,null,null,null,null,null,null,null,null,null,null,null,null,null,null,null,null,null,null,null,null,null,null,null,null,null,null,null,null,null,null,null,null,null,null,null,null,null,null,null,null,null,null,null,null,null,null,null,null,null,null,null,null,null,null,"E",{"$f":"$GW$168+$GX$168","v":650},null,null,null,null,null,null,null,null,"Muratura a blocchi lapidei squadrati",null,null,null,null,null,null,null,1.05,1.5]
[null,null,null,null,null,null,null,null,null,null,null,null,null,null,null,null,null,null,null,null,null,null,null,null,null,null,null,null,null,null,null,null,null,null,null,null,null,null,null,null,null,null,null,null,null,null,null,null,null,null,null,null,null,null,null,null,null,null,null,null,null,null,null,null,null,null,null,null,null,null,null,null,null,null,null,null,null,null,null,null,null,null,null,null,null,null,null,null,null,null,null,null,null,null,null,null,null,null,null,null,null,null,null,null,null,null,null,null,null,null,null,null,null,null,null,null,null,null,null,null,null,null,null,null,null,null,null,null,null,null,null,null,null,null,null,null,null,null,null,null,null,null,null,null,null,null,null,null,null,null,null,null,null,null,null,null,null,null,null,null,null,null,null,null,null,null,null,null,null,null,null,null,null,null,null,null,null,null,null,null,null,null,null,null,null,null,null,null,null,null,null,null,null,null,null,null,null,null,null,null,null,null,null,null,{"$f":"(1+$HA$159*($HP$170-1))*$HL$136","v":290},{"$f":"$HB$159*(0.4*$HL$144*$HJ$151/$GY$138)","v":360},null,null,null,true,1,null,null,null,"Muratura in mattoni pieni e malta di calce",null,null,null,null,null,null,null,1.05,1.3]
[null,null,null,null,null,null,null,null,null,null,null,null,null,null,null,null,null,null,null,null,null,null,null,null,null,null,null,null,null,null,null,null,null,null,null,null,null,null,null,null,null,null,null,null,null,null,null,null,null,null,null,null,null,null,null,null,null,null,null,null,null,null,null,null,null,null,null,null,null,null,null,null,null,null,null,null,null,null,null,null,null,null,null,null,null,null,null,null,null,null,null,null,null,null,null,null,null,null,null,null,null,null,null,null,null,null,null,null,null,null,null,null,null,null,null,null,null,null,null,null,null,null,null,null,null,null,null,null,null,null,null,null,null,null,null,null,null,null,null,null,null,null,null,null,null,null,null,null,null,null,null,null,null,null,null,null,null,null,null,null,null,null,null,null,null,null,null,null,null,null,null,null,null,null,null,null,null,null,null,null,null,null,null,null,null,null,null,null,null,null,null,null,null,null,null,null,null,null,null,null,null,null,null,null,null,null,null,null,null,false,2,null,null,null,"Muratura in mattoni semipieni con malta cementizia",null,null,null,null,null,null,null,1,1.3]
[null,null,null,null,null,null,null,null,null,null,null,null,null,null,null,null,null,null,null,null,null,null,null,null,null,null,null,null,null,null,null,null,null,null,null,null,null,null,null,null,null,null,null,null,null,null,null,null,null,null,null,null,null,null,null,null,null,null,null,null,null,null,null,null,null,null,null,null,null,null,null,null,null,null,null,null,null,null,null,null,null,null,null,null,null,null,null,null,null,null,null,null,null,null,null,null,null,null,null,null,null,null,null,null,null,null,null,null,null,null,null,null,null,null,null,null,null,null,null,null,null,null,null,null,null,null,null,null,null,null,null,null,null,null,null,null,null,null,null,null,null,null,null,null,null,null,null,null,null,null,null,null,null,null,null,null,null,null,null,null,null,null,null,null,null,null,null,null,null,null,null,null,null,null,null,null,null,null,null,null,null,null,null,null,null,null,null,null,null,null,null,null,null,null,null,null,null,null,null,null,null,null,null,null,null,null,null,null,null,null,null,null,null,null,null,null,null,null,null,null,null,null,null,{"$f":"VLOOKUP(GW149,HG162:HP169,10,FALSE)","v":1.5}]

{"sheet":"2","index":2,"n_rows":32,"n_cols":12,"rows_kept":32,"cut":false,"hidden":false,"merged":[[6,2,6,4],[6,6,6,8],[11,2,11,11],[14,2,14,3],[2,6,3,11],[19,2,19,8],[20,2,20,8],[23,2,23,11],[14,8,14,9],[16,2,16,11],[17,2,17,8],[18,2,18,8],[15,8,15,11],[31,2,31,8],[26,2,26,3],[26,9,26,10],[28,2,28,11],[29,2,29,8],[30,2,30,8]]}
[]
[]
[null,null,null,null,null,null,"DEFINIZIONE DEL RINFORZO"]
[]
[]
[]
[null,null,"Tipologia d'intervento",null,null,null,"Paramento a sacco"]
[]
[]
[]
[]
[null,null,"CARATTERISTICHE DELL'INTONACO"]
[]
[]
[null,null,"Tipologia intonaco",null,null,null,null,null,"Spessore intonaco"]
[]
[null,null,"Parametri meccanici intonaco"]
[null,null,"Resistenza a trazione",null,null,null,null,null,null,"ft,int ",{"$f":"'1'!$HP$144","v":3.5714285714285716},"N/mm2"]
[null,null,"Modulo elastico",null,null,null,null,null,null,"Eint",{"$f":"'1'!$HL$144","v":9000},"N/mm2"]
[null,null,"Rapporto f/E",null,null,null,null,null,null,"εint",{"$f":"$K$18/$K$19","v":3.9682539682539683E-4}]
[null,null,"Resistenza a compressione",null,null,null,null,null,null,"fc",{"$f":"'1'!$HQ$144","v":15},"N/mm2"]
[]
[]
[null,null,"CARATTERISTICHE RETE"]
[]
[]
[null,null,"Tipologia rete",null,null,null,null,null,null,"Connettori al m2"]
[]
[null,null,"Parametri meccanici rete"]
[null,null,"Resistenza a trazione",null,null,null,null,null,null,"ft,rete",{"$f":"'1'!$HU$144","v":4500},"N"]
[null,null,"Rigidezza assiale",null,null,null,null,null,null,"EAr ",{"$f":"'1'!$HZ$144","v":282600},"N/mm2"]
[null,null,"Passo della maglia",null,null,null,null,null,null,"p",{"$f":"'1'!$HX$144","v":33},"mm"]

{"sheet":"3","index":3,"n_rows":41,"n_cols":12,"rows_kept":41,"cut":false,"hidden":false,"merged":[[38,2,38,8],[38,10,38,11],[24,2,24,4],[24,6,24,8],[27,2,27,4],[27,6,27,8],[30,2,30,4],[33,2,33,4],[40,2,40,11],[22,2,22,11],[19,2,19,11],[7,2,7,11],[14,2,14,3],[14,8,14,9],[16,2,16,3],[37,2,37,8],[36,10,36,11],[37,10,37,11],[23,2,23,8],[26,2,26,8],[29,2,29,8],[32,2,32,8],[35,2,35,11],[36,2,36,8],[2,6,3,11],[16,8,16,9],[10,2,10,4],[12,2,12,3],[10,5,10,11],[14,4,14,5],[16,4,16,5],[16,10,16,11],[12,7,12,9],[12,10,12,11]]}
[]
[]
[null,null,null,null,null,null,"MURATURA RINFORZATA"]
[]
[]
[]
[]
[null,null,"RIEPILOGO PARAMETRI IMMESSI"]
[]
[]
[null,null,"Tipologia di muratura",null,null,{"$f":"'1'!$G$9","v":"Muratura in pietrame disordinata "}]
[]
[null,null,"Spessore muratura",null,{"$f":"'1'!$GY$138","v":"300"},"mm",null,"Livello di conoscenza",null,null,{"$f":"'1'!$GZ$132","v":"LC1"}]
[]
[null,null,"Tipologia intonaco",null,{"$f":"'1'!$HG$144","v":"FM55"},null,null,null,"Spessore intonaco",null,{"$f":"'1'!$HJ$151","v":"30"},"mm"]
[]
[null,null,"Tipologia rete",null,{"$f":"'1'!$HS$144","v":"RG NET BA G33"},null,null,null,"Connettori al m2",null,{"$f":"'1'!$HG$156","v":"6"}]
[]
[]
[null,null,"CARATTERISTICHE MECCANICHE MURATURA RINFORZATA"]
[]
[]
[null,null,"Parametri meccanici muratura rinforzata"]
[null,null,"Resistenza a compressione",null,null,null,null,null,null,"fm,r",{"$f":"'1'!$HD$136*'1'!$HE$166","v":1},"N/mm2"]
[null,null,"Incremento massimo consentito",null,null,{"$f":"'1'!HE165-1","v":0.5},"Incremento conseguito",null,null,{"$f":"'3'!K24/'1'!HD136-1","v":0}]
[]
[null,null,"Resistenza a taglio",null,null,null,null,null,null,"τ0,r",{"$f":"MIN('1'!$GW$164:$GX$164)","v":6.3E-2},"N/mm2"]
[null,null,"Incremento massimo consentito",null,null,2.5,"Incremento conseguito",null,null,{"$f":"'3'!K27/'1'!HF136-1","v":2.5000000000000004}]
[]
[null,null,"Modulo di elasticità normale",null,null,null,null,null,null,"Em,r",{"$f":"K33/0.4","v":1625},"N/mm2"]
[null,null,"Incremento conseguito",null,null,{"$f":"K30/'1'!HJ136-1","v":0.86781609195402298}]
[]
[null,null,"Modulo di elasticità tangenziale",null,null,null,null,null,null,"Gm,r",{"$f":"'1'!GX167","v":650},"N/mm2"]
[null,null,"Incremento conseguito",null,null,{"$f":"K33/'1'!HL136-1","v":1.2413793103448274}]
[]
[null,null,"Bilanciamento intervento"]
[null,null,{"$f":"IF(AND(K37>0.6),\"Intonaco bilanciato\",\"ATTENZIONE-ERRORE modificare rinforzo\")","v":"Intonaco bilanciato"},null,null,null,null,null,null,"δ1",{"$f":"0.5*('2'!$K$21*'1'!$HJ$151)/(1.5*'1'!GW164*('1'!$HJ$151+'1'!$GY$138))","v":1.7240687292245154}]
[null,null,{"$f":"IF(AND('3'!K38>0.6),\"Rete bilanciata\",\"ATTENZIONE-ERRORE modificare rinforzo\")","v":"Rete bilanciata"},null,null,null,null,null,null,"δ2",{"$f":"2*('2'!$K$30)/(1.5*'1'!GW164*('1'!$GY$138+'1'!$HJ$151)*'2'!$K$32)","v":2.0897802778478973}]
[null,null,"Rapporto di bilanciamento (si consigliano valori >1.00)",null,null,null,null,null,null,"δ3",{"$f":"K37/K38","v":0.82500000000000007}]
[]
[null,null,{"$f":"IF(AND(K37>0.6,K38>0.6),\"Rinforzo dimensionato correttamente\",\"Errore nel progetto\")","v":"Rinforzo dimensionato correttamente"}]